[Event "January 9 Late 2024"]
[Site "https://www.chess.com"]
[Date "2024.01.09"]
[Round "2"]
[White "Petre, Nad-Titus"]
[Black "Gonzalez Vega, Alejandro"]
[Result "1-0"]
[Board "204"]
[TimeControl "180+1"]
[WhiteFideId "1204165"]
[BlackFideId "3510042"]
[WhiteElo "2503"]
[BlackElo "2226"]
[WhiteTeam "ROU"]
[BlackTeam "CUB"]
[WhiteClock "0:00:08"]
[BlackClock "0:00:00"]

1. Nf3 {[%clk 0:03:00]}  d5 {[%clk 0:02:59]} 2. e3 {[%clk 0:03:00]}  Nf6 {[%clk 0:02:58]} 3. c4 {[%clk 0:03:00]}  e6 {[%clk 0:02:58]} 4. Nc3 {[%clk 0:02:59]}  c6 {[%clk 0:02:57]} 5. b3 {[%clk 0:02:59]}  Nbd7 {[%clk 0:02:56]} 6. Bb2 {[%clk 0:03:00]}  Be7 {[%clk 0:02:55]} 7. Qc2 {[%clk 0:02:57]}  a5 {[%clk 0:02:52]} 8. Rg1 {[%clk 0:02:54]}  b6 {[%clk 0:02:10]} 9. g4 {[%clk 0:02:53]}  h6 {[%clk 0:01:54]} 10. h4 {[%clk 0:02:53]}  h5 {[%clk 0:01:32]} 11. gxh5 {[%clk 0:02:40]}  Nxh5 {[%clk 0:01:32]} 12. Ng5 {[%clk 0:02:25]}  Bf6 {[%clk 0:01:26]} 13. Be2 {[%clk 0:02:15]}  g6 {[%clk 0:01:23]} 14. Nxf7 {[%clk 0:02:14]}  Kxf7 {[%clk 0:01:12]} 15. Qxg6+ {[%clk 0:02:14]}  Ke7 {[%clk 0:01:12]} 16. Bxh5 {[%clk 0:01:58]}  Qf8 {[%clk 0:01:10]} 17. Be2 {[%clk 0:01:35]}  Rxh4 {[%clk 0:00:59]} 18. O-O-O {[%clk 0:01:32]}  Ne5 {[%clk 0:00:50]} 19. Qg3 {[%clk 0:01:26]}  dxc4 {[%clk 0:00:43]} 20. bxc4 {[%clk 0:01:21]}  Ba6 {[%clk 0:00:39]} 21. d4 {[%clk 0:01:16]}  Nd7 {[%clk 0:00:31]} 22. f4 {[%clk 0:01:08]}  Kd8 {[%clk 0:00:26]} 23. Ne4 {[%clk 0:01:08]}  Be7 {[%clk 0:00:25]} 24. Bg4 {[%clk 0:01:04]}  Rh6 {[%clk 0:00:23]} 25. Rh1 {[%clk 0:01:02]}  Rg6 {[%clk 0:00:21]} 26. Qh3 {[%clk 0:01:00]}  Bxc4 {[%clk 0:00:20]} 27. Kb1 {[%clk 0:00:51]}  Ba3 {[%clk 0:00:18]} 28. Bc3 {[%clk 0:00:44]}  Bb4 {[%clk 0:00:17]} 29. Bb2 {[%clk 0:00:27]}  Ba3 {[%clk 0:00:17]} 30. Rd2 {[%clk 0:00:20]}  Bd5 {[%clk 0:00:16]} 31. Bf3 {[%clk 0:00:19]}  Rg8 {[%clk 0:00:14]} 32. Rc2 {[%clk 0:00:19]}  Qb4 {[%clk 0:00:12]} 33. Ka1 {[%clk 0:00:16]}  Bxb2+ {[%clk 0:00:11]} 34. Rxb2 {[%clk 0:00:17]}  Qa4 {[%clk 0:00:11]} 35. Nd6 {[%clk 0:00:14]}  Kc7 {[%clk 0:00:10]} 36. e4 {[%clk 0:00:13]}  Kxd6 {[%clk 0:00:08]} 37. exd5 {[%clk 0:00:12]}  cxd5 {[%clk 0:00:08]} 38. Re1 {[%clk 0:00:11]}  Rae8 {[%clk 0:00:07]} 39. Bg4 {[%clk 0:00:12]}  Nf8 {[%clk 0:00:06]} 40. Qh2 {[%clk 0:00:11]}  Qxd4 {[%clk 0:00:06]} 41. f5+ {[%clk 0:00:11]}  e5 {[%clk 0:00:06]} 42. Qh6+ {[%clk 0:00:11]}  Kc7 {[%clk 0:00:05]} 43. Rc1+ {[%clk 0:00:09]}  Kb8 {[%clk 0:00:04]} 44. Qxb6+ {[%clk 0:00:08]}  Qxb6 {[%clk 0:00:03]} 45. Rxb6+ {[%clk 0:00:08]}  Ka7 {[%clk 0:00:03]} 46. Rb5 {[%clk 0:00:07]}  Ka6 {[%clk 0:00:03]} 47. Rcc5 {[%clk 0:00:07]}  Rb8 {[%clk 0:00:02]} 48. Rxa5+ {[%clk 0:00:07]}  Kb7 {[%clk 0:00:02]} 49. Rab5+ {[%clk 0:00:08]}  Ka7 {[%clk 0:00:02]} 50. Rxb8 {[%clk 0:00:09]}  Kxb8 {[%clk 0:00:03]} 51. Bf3 {[%clk 0:00:10]}  Nd7 {[%clk 0:00:03]} 52. Rxd5 {[%clk 0:00:10]}  Nf6 {[%clk 0:00:03]} 53. Rxe5 {[%clk 0:00:10]}  Rf8 {[%clk 0:00:04]} 54. Kb2 {[%clk 0:00:10]}  Kc7 {[%clk 0:00:04]} 55. Be4 {[%clk 0:00:10]}  Kd6 {[%clk 0:00:05]} 56. Re6+ {[%clk 0:00:11]}  Kc5 {[%clk 0:00:05]} 57. Kc3 {[%clk 0:00:11]}  Nxe4+ {[%clk 0:00:05]} 58. Rxe4 {[%clk 0:00:11]}  Rxf5 {[%clk 0:00:06]} 59. Rc4+ {[%clk 0:00:09]}  Kb5 {[%clk 0:00:05]} 60. Rb4+ {[%clk 0:00:10]}  Ka5 {[%clk 0:00:05]} 61. Rd4 {[%clk 0:00:10]}  Rf3+ {[%clk 0:00:05]} 62. Kc4 {[%clk 0:00:09]}  Ra3 {[%clk 0:00:04]} 63. Rd8 {[%clk 0:00:08]}  Kb6 {[%clk 0:00:02]} 64. Rb8+ {[%clk 0:00:08]}  Kc7 {[%clk 0:00:02]} 65. Rb2 {[%clk 0:00:09]}  Ra8 {[%clk 0:00:01]} 66. Rc2 {[%clk 0:00:09]}  Ra4+ {[%clk 0:00:00]} 67. Kb5+ {[%clk 0:00:08]} 1-0

[Event "January 9 Late 2024"]
[Site "https://www.chess.com"]
[Date "2024.01.09"]
[Round "2"]
[White "D`Arruda, Ricardo D."]
[Black "Skurikhin, Dmitrij"]
[Result "0-1"]
[Board "207"]
[TimeControl "180+1"]
[WhiteFideId "100692"]
[BlackFideId "4161297"]
[WhiteElo "2498"]
[BlackElo "2217"]
[WhiteTeam "ARG"]
[BlackTeam "RUS"]
[WhiteClock "0:00:19"]
[BlackClock "0:00:11"]

1. d4 {[%clk 0:03:00]}  d5 {[%clk 0:02:59]} 2. Nf3 {[%clk 0:03:00]}  Nf6 {[%clk 0:02:58]} 3. c4 {[%clk 0:03:01]}  c6 {[%clk 0:02:58]} 4. e3 {[%clk 0:03:01]}  Bf5 {[%clk 0:02:57]} 5. Nc3 {[%clk 0:03:01]}  e6 {[%clk 0:02:57]} 6. Bd3 {[%clk 0:03:01]}  Bg6 {[%clk 0:02:55]} 7. O-O {[%clk 0:02:59]}  Nbd7 {[%clk 0:02:54]} 8. b3 {[%clk 0:02:45]}  Bb4 {[%clk 0:02:50]} 9. Bb2 {[%clk 0:02:45]}  O-O {[%clk 0:02:48]} 10. Qc2 {[%clk 0:02:43]}  a5 {[%clk 0:02:47]} 11. Bxg6 {[%clk 0:02:37]}  hxg6 {[%clk 0:02:45]} 12. a3 {[%clk 0:02:38]}  Bd6 {[%clk 0:02:43]} 13. e4 {[%clk 0:02:37]}  Nxe4 {[%clk 0:02:42]} 14. Nxe4 {[%clk 0:02:38]}  dxe4 {[%clk 0:02:42]} 15. Qxe4 {[%clk 0:02:39]}  Nf6 {[%clk 0:02:42]} 16. Qh4 {[%clk 0:02:38]}  Be7 {[%clk 0:02:37]} 17. Rad1 {[%clk 0:02:27]}  Nh7 {[%clk 0:02:34]} 18. Qe4 {[%clk 0:02:26]}  Bf6 {[%clk 0:02:33]} 19. Qc2 {[%clk 0:02:23]}  Qb6 {[%clk 0:02:27]} 20. Ne5 {[%clk 0:02:18]}  Rfd8 {[%clk 0:02:19]} 21. Kh1 {[%clk 0:02:13]}  Bxe5 {[%clk 0:01:52]} 22. dxe5 {[%clk 0:02:12]}  Nf8 {[%clk 0:01:51]} 23. Rd6 {[%clk 0:02:08]}  Nd7 {[%clk 0:00:52]} 24. Rfd1 {[%clk 0:02:04]}  Nc5 {[%clk 0:00:51]} 25. h3 {[%clk 0:01:33]}  Rxd6 {[%clk 0:00:47]} 26. exd6 {[%clk 0:01:32]}  Rd8 {[%clk 0:00:45]} 27. Qc3 {[%clk 0:01:21]}  f6 {[%clk 0:00:43]} 28. b4 {[%clk 0:01:01]}  axb4 {[%clk 0:00:42]} 29. axb4 {[%clk 0:01:02]}  Ne4 {[%clk 0:00:38]} 30. Qd4 {[%clk 0:00:49]}  Nxf2+ {[%clk 0:00:35]} 31. Kg1 {[%clk 0:00:49]}  Qxd4 {[%clk 0:00:12]} 32. Rxd4 {[%clk 0:00:50]}  e5 {[%clk 0:00:13]} 33. Rg4 {[%clk 0:00:19]}  Nxg4 {[%clk 0:00:11]} 0-1

[Event "January 9 Late 2024"]
[Site "https://www.chess.com"]
[Date "2024.01.09"]
[Round "2"]
[White "Pourkashiyan, Atousa"]
[Black "Cardozo Munar, Carlos Eduardo"]
[Result "1-0"]
[Board "208"]
[TimeControl "180+1"]
[WhiteFideId "12502014"]
[BlackFideId "4409477"]
[WhiteElo "2495"]
[BlackElo "2211"]
[WhiteTeam "USA"]
[BlackTeam "COL"]
[WhiteClock "0:00:17"]
[BlackClock "0:00:00"]

1. d4 {[%clk 0:03:00]}  d5 {[%clk 0:02:58]} 2. c4 {[%clk 0:02:59]}  e5 {[%clk 0:02:51]} 3. dxe5 {[%clk 0:02:57]}  d4 {[%clk 0:02:52]} 4. Nf3 {[%clk 0:02:55]}  Nc6 {[%clk 0:02:51]} 5. a3 {[%clk 0:02:52]}  Nge7 {[%clk 0:02:52]} 6. b4 {[%clk 0:02:47]}  Ng6 {[%clk 0:02:52]} 7. Bb2 {[%clk 0:02:46]}  a5 {[%clk 0:02:53]} 8. b5 {[%clk 0:02:44]}  Ncxe5 {[%clk 0:02:54]} 9. Nxe5 {[%clk 0:02:42]}  Nxe5 {[%clk 0:02:54]} 10. Qxd4 {[%clk 0:02:41]}  Qxd4 {[%clk 0:02:54]} 11. Bxd4 {[%clk 0:02:41]}  Nxc4 {[%clk 0:02:55]} 12. e3 {[%clk 0:02:33]}  Nd6 {[%clk 0:02:55]} 13. Be2 {[%clk 0:02:30]}  Be7 {[%clk 0:02:54]} 14. Nc3 {[%clk 0:02:27]}  O-O {[%clk 0:02:53]} 15. Nd5 {[%clk 0:02:27]}  Bd8 {[%clk 0:02:49]} 16. Rc1 {[%clk 0:02:14]}  c6 {[%clk 0:02:21]} 17. bxc6 {[%clk 0:02:10]}  bxc6 {[%clk 0:02:22]} 18. Rxc6 {[%clk 0:02:10]}  Nf5 {[%clk 0:02:21]} 19. Ba1 {[%clk 0:01:41]}  Bb7 {[%clk 0:02:20]} 20. Rc5 {[%clk 0:01:40]}  Ne7 {[%clk 0:01:55]} 21. Bf3 {[%clk 0:01:38]}  Nxd5 {[%clk 0:01:39]} 22. Bxd5 {[%clk 0:01:39]}  Be7 {[%clk 0:01:34]} 23. Rc7 {[%clk 0:01:25]}  Bxd5 {[%clk 0:01:30]} 24. Rxe7 {[%clk 0:01:25]}  Bxg2 {[%clk 0:01:18]} 25. Rg1 {[%clk 0:01:24]}  Rab8 {[%clk 0:01:19]} 26. Ke2 {[%clk 0:01:10]}  g6 {[%clk 0:00:28]} 27. Rxg2 {[%clk 0:01:09]}  Rb3 {[%clk 0:00:28]} 28. a4 {[%clk 0:00:55]}  Ra3 {[%clk 0:00:27]} 29. Bd4 {[%clk 0:00:48]}  Ra2+ {[%clk 0:00:27]} 30. Kf3 {[%clk 0:00:47]}  Rxa4 {[%clk 0:00:28]} 31. Rg5 {[%clk 0:00:47]}  Ra8 {[%clk 0:00:23]} 32. Rd5 {[%clk 0:00:44]}  Rb4 {[%clk 0:00:14]} 33. Rdd7 {[%clk 0:00:44]}  Rf8 {[%clk 0:00:15]} 34. Ra7 {[%clk 0:00:44]}  Rb5 {[%clk 0:00:14]} 35. Red7 {[%clk 0:00:40]}  Rf5+ {[%clk 0:00:15]} 36. Kg3 {[%clk 0:00:36]}  h5 {[%clk 0:00:15]} 37. h4 {[%clk 0:00:36]}  Re8 {[%clk 0:00:15]} 38. Rdc7 {[%clk 0:00:30]}  g5 {[%clk 0:00:15]} 39. Rc5 {[%clk 0:00:27]}  gxh4+ {[%clk 0:00:14]} 40. Kg2 {[%clk 0:00:25]}  Rxc5 {[%clk 0:00:13]} 41. Bxc5 {[%clk 0:00:25]}  Re5 {[%clk 0:00:13]} 42. Rxa5 {[%clk 0:00:24]}  Kh7 {[%clk 0:00:13]} 43. Bb4 {[%clk 0:00:23]}  Re4 {[%clk 0:00:08]} 44. Rxh5+ {[%clk 0:00:21]}  Kg6 {[%clk 0:00:09]} 45. Rb5 {[%clk 0:00:22]}  f5 {[%clk 0:00:09]} 46. Rb6+ {[%clk 0:00:20]}  Kh5 {[%clk 0:00:09]} 47. Bc5 {[%clk 0:00:21]}  Rc4 {[%clk 0:00:09]} 48. Bd4 {[%clk 0:00:20]}  Kg4 {[%clk 0:00:08]} 49. Rb8 {[%clk 0:00:20]}  h3+ {[%clk 0:00:08]} 50. Kh2 {[%clk 0:00:19]}  Rc2 {[%clk 0:00:08]} 51. Rg8+ {[%clk 0:00:18]}  Kf3 {[%clk 0:00:08]} 52. Kxh3 {[%clk 0:00:17]}  Rxf2 {[%clk 0:00:07]} 53. Rf8 {[%clk 0:00:17]}  Ke4 {[%clk 0:00:08]} 54. Kg3 {[%clk 0:00:16]}  Rf3+ {[%clk 0:00:08]} 55. Kg2 {[%clk 0:00:16]}  Rxe3 {[%clk 0:00:01]} 56. Bxe3 {[%clk 0:00:16]}  Kxe3 {[%clk 0:00:00]} 57. Rxf5 {[%clk 0:00:17]} 1-0

[Event "January 9 Late 2024"]
[Site "https://www.chess.com"]
[Date "2024.01.09"]
[Round "2"]
[White "Palmer, Reegan"]
[Black "Goncalves, Davi Sulzbacher"]
[Result "0-1"]
[Board "209"]
[TimeControl "180+1"]
[WhiteFideId "14322145"]
[BlackFideId "2154510"]
[WhiteElo "2211"]
[BlackElo "2494"]
[WhiteTeam "RSA"]
[BlackTeam "BRA"]
[WhiteClock "0:00:04"]
[BlackClock "0:00:43"]

1. e4 {[%clk 0:02:53]}  c5 {[%clk 0:02:45]} 2. Nf3 {[%clk 0:02:51]}  d6 {[%clk 0:02:45]} 3. d3 {[%clk 0:02:47]}  Nf6 {[%clk 0:02:45]} 4. g3 {[%clk 0:02:47]}  g6 {[%clk 0:02:46]} 5. Bg2 {[%clk 0:02:48]}  Bg7 {[%clk 0:02:47]} 6. O-O {[%clk 0:02:48]}  O-O {[%clk 0:02:48]} 7. c3 {[%clk 0:02:44]}  Nc6 {[%clk 0:02:47]} 8. Nbd2 {[%clk 0:02:45]}  b6 {[%clk 0:02:44]} 9. Re1 {[%clk 0:02:44]}  Bb7 {[%clk 0:02:43]} 10. Nf1 {[%clk 0:02:44]}  Qc7 {[%clk 0:02:42]} 11. h4 {[%clk 0:02:43]}  h5 {[%clk 0:02:36]} 12. d4 {[%clk 0:02:26]}  cxd4 {[%clk 0:02:33]} 13. cxd4 {[%clk 0:02:27]}  Rac8 {[%clk 0:02:30]} 14. Bg5 {[%clk 0:02:19]}  Nb4 {[%clk 0:02:15]} 15. Rc1 {[%clk 0:02:05]}  Qd7 {[%clk 0:02:04]} 16. Qb3 {[%clk 0:01:34]}  Nc6 {[%clk 0:01:52]} 17. e5 {[%clk 0:01:10]}  Ng4 {[%clk 0:01:38]} 18. e6 {[%clk 0:00:54]}  fxe6 {[%clk 0:01:30]} 19. Qxe6+ {[%clk 0:00:53]}  Qxe6 {[%clk 0:01:29]} 20. Rxe6 {[%clk 0:00:54]}  Nxd4 {[%clk 0:01:26]} 21. Nxd4 {[%clk 0:00:45]}  Rxc1 {[%clk 0:01:21]} 22. Bxc1 {[%clk 0:00:40]}  Bxg2 {[%clk 0:01:18]} 23. Nb3 {[%clk 0:00:02]}  Bxf1 {[%clk 0:00:50]} 24. Kxf1 {[%clk 0:00:03]}  Rxf2+ {[%clk 0:00:51]} 25. Kg1 {[%clk 0:00:03]}  Bf6 {[%clk 0:00:51]} 26. Re1 {[%clk 0:00:03]}  Rc2 {[%clk 0:00:50]} 27. Rf1 {[%clk 0:00:03]}  Kf7 {[%clk 0:00:49]} 28. Kh1 {[%clk 0:00:03]}  Ke6 {[%clk 0:00:49]} 29. Bg5 {[%clk 0:00:04]}  Kd7 {[%clk 0:00:49]} 30. Bxf6 {[%clk 0:00:04]}  exf6 {[%clk 0:00:49]} 31. Kg1 {[%clk 0:00:05]}  Rxb2 {[%clk 0:00:48]} 32. Ra1 {[%clk 0:00:05]}  a5 {[%clk 0:00:47]} 33. Nd4 {[%clk 0:00:05]}  a4 {[%clk 0:00:46]} 34. Nf3 {[%clk 0:00:06]}  a3 {[%clk 0:00:46]} 35. Rd1 {[%clk 0:00:06]}  Rxa2 {[%clk 0:00:45]} 36. Nd2 {[%clk 0:00:07]}  Ne3 {[%clk 0:00:44]} 37. Ra1 {[%clk 0:00:04]}  Rxa1+ {[%clk 0:00:43]} 0-1

[Event "January 9 Late 2024"]
[Site "https://www.chess.com"]
[Date "2024.01.09"]
[Round "2"]
[White "Sailer, Mike"]
[Black "Novikov, Evgenij"]
[Result "0-1"]
[Board "210"]
[TimeControl "180+1"]
[WhiteFideId "2012901"]
[BlackFideId "4125380"]
[WhiteElo "2207"]
[BlackElo "2492"]
[WhiteTeam "USA"]
[BlackTeam "RUS"]
[WhiteClock "0:00:00"]
[BlackClock "0:00:01"]

1. d4 {[%clk 0:03:00]}  f5 {[%clk 0:02:58]} 2. Nc3 {[%clk 0:02:59]}  Nf6 {[%clk 0:02:57]} 3. Bg5 {[%clk 0:02:58]}  d5 {[%clk 0:02:57]} 4. e4 {[%clk 0:02:46]}  dxe4 {[%clk 0:02:53]} 5. f3 {[%clk 0:02:37]}  exf3 {[%clk 0:02:39]} 6. Nxf3 {[%clk 0:02:34]}  e6 {[%clk 0:02:39]} 7. Bc4 {[%clk 0:02:29]}  Bd6 {[%clk 0:02:34]} 8. Qe2 {[%clk 0:02:28]}  O-O {[%clk 0:02:33]} 9. O-O {[%clk 0:02:23]}  Kh8 {[%clk 0:02:31]} 10. Rad1 {[%clk 0:02:18]}  c6 {[%clk 0:02:24]} 11. Rfe1 {[%clk 0:02:15]}  Re8 {[%clk 0:02:06]} 12. a3 {[%clk 0:02:14]}  Qc7 {[%clk 0:02:03]} 13. Ne5 {[%clk 0:01:32]}  b5 {[%clk 0:01:59]} 14. Ba2 {[%clk 0:01:14]}  a5 {[%clk 0:01:57]} 15. Bxf6 {[%clk 0:01:01]}  gxf6 {[%clk 0:01:57]} 16. Qh5 {[%clk 0:01:00]}  Rg8 {[%clk 0:01:38]} 17. Nf7+ {[%clk 0:00:44]}  Kg7 {[%clk 0:01:37]} 18. Nh6 {[%clk 0:00:27]}  Rf8 {[%clk 0:01:26]} 19. Bxe6 {[%clk 0:00:26]}  Bxh2+ {[%clk 0:01:07]} 20. Kh1 {[%clk 0:00:23]}  Bf4 {[%clk 0:01:08]} 21. Nxf5+ {[%clk 0:00:20]}  Kh8 {[%clk 0:01:07]} 22. Bxc8 {[%clk 0:00:10]}  Ra7 {[%clk 0:00:49]} 23. Re7 {[%clk 0:00:07]}  Qxe7 {[%clk 0:00:50]} 24. Nxe7 {[%clk 0:00:07]}  Rxe7 {[%clk 0:00:51]} 25. Bf5 {[%clk 0:00:06]}  Bg5 {[%clk 0:00:49]} 26. Ne4 {[%clk 0:00:04]}  Nd7 {[%clk 0:00:48]} 27. Nxg5 {[%clk 0:00:04]}  fxg5 {[%clk 0:00:49]} 28. Qxg5 {[%clk 0:00:04]}  Rg7 {[%clk 0:00:49]} 29. Qh5 {[%clk 0:00:02]}  Nf6 {[%clk 0:00:49]} 30. Qh3 {[%clk 0:00:02]}  Nd5 {[%clk 0:00:50]} 31. Re1 {[%clk 0:00:02]}  Nf4 {[%clk 0:00:50]} 32. Qd3 {[%clk 0:00:01]}  Nxd3 {[%clk 0:00:49]} 33. Bxd3 {[%clk 0:00:01]}  Rd7 {[%clk 0:00:49]} 34. Re6 {[%clk 0:00:01]}  Rxd4 {[%clk 0:00:44]} 35. Rxc6 {[%clk 0:00:02]}  Rh4+ {[%clk 0:00:43]} 36. Kg1 {[%clk 0:00:02]}  b4 {[%clk 0:00:44]} 37. axb4 {[%clk 0:00:02]}  axb4 {[%clk 0:00:45]} 38. b3 {[%clk 0:00:02]}  Rf7 {[%clk 0:00:43]} 39. Rc8+ {[%clk 0:00:02]}  Kg7 {[%clk 0:00:43]} 40. Rc5 {[%clk 0:00:01]}  Rhf4 {[%clk 0:00:39]} 41. Rg5+ {[%clk 0:00:01]}  Kf6 {[%clk 0:00:39]} 42. Rh5 {[%clk 0:00:01]}  Ra7 {[%clk 0:00:17]} 43. Rxh7 {[%clk 0:00:01]}  Ra1+ {[%clk 0:00:15]} 44. Kh2 {[%clk 0:00:02]}  Ke5 {[%clk 0:00:16]} 45. Kg3 {[%clk 0:00:02]}  Rf8 {[%clk 0:00:14]} 46. Rh5+ {[%clk 0:00:03]}  Kd4 {[%clk 0:00:12]} 47. Rh4+ {[%clk 0:00:03]}  Ke3 {[%clk 0:00:13]} 48. Re4+ {[%clk 0:00:03]}  Kd2 {[%clk 0:00:13]} 49. Re2+ {[%clk 0:00:03]}  Kc3 {[%clk 0:00:13]} 50. Re4 {[%clk 0:00:04]}  Rb8 {[%clk 0:00:07]} 51. Rc4+ {[%clk 0:00:04]}  Kd2 {[%clk 0:00:07]} 52. Re4 {[%clk 0:00:04]}  Rh1 {[%clk 0:00:06]} 53. Re2+ {[%clk 0:00:04]}  Kc3 {[%clk 0:00:06]} 54. Re4 {[%clk 0:00:05]}  Rh6 {[%clk 0:00:06]} 55. Rc4+ {[%clk 0:00:05]}  Kd2 {[%clk 0:00:07]} 56. Re4 {[%clk 0:00:06]}  Rg6+ {[%clk 0:00:06]} 57. Kf2 {[%clk 0:00:06]}  Rf8+ {[%clk 0:00:05]} 58. Kg1 {[%clk 0:00:07]}  Rb6 {[%clk 0:00:04]} 59. Re2+ {[%clk 0:00:07]}  Kc3 {[%clk 0:00:03]} 60. Re4 {[%clk 0:00:07]}  Rg8 {[%clk 0:00:03]} 61. Rc4+ {[%clk 0:00:08]}  Kd2 {[%clk 0:00:04]} 62. Re4 {[%clk 0:00:08]}  Rd6 {[%clk 0:00:03]} 63. Re2+ {[%clk 0:00:09]}  Kc3 {[%clk 0:00:03]} 64. Re4 {[%clk 0:00:09]}  Rb6 {[%clk 0:00:03]} 65. Rc4+ {[%clk 0:00:10]}  Kb2 {[%clk 0:00:03]} 66. Re4 {[%clk 0:00:10]}  Rg5 {[%clk 0:00:03]} 67. Re2 {[%clk 0:00:10]}  Rb7 {[%clk 0:00:04]} 68. Rf2 {[%clk 0:00:11]}  Rbg7 {[%clk 0:00:04]} 69. Re2 {[%clk 0:00:11]}  Kc3 {[%clk 0:00:04]} 70. Rf2 {[%clk 0:00:10]}  Rg3 {[%clk 0:00:04]} 71. Re2 {[%clk 0:00:11]}  Rxd3 {[%clk 0:00:04]} 72. cxd3 {[%clk 0:00:11]}  Kxb3 {[%clk 0:00:05]} 73. Kf2 {[%clk 0:00:06]}  Kc3 {[%clk 0:00:05]} 74. Re3 {[%clk 0:00:06]}  b3 {[%clk 0:00:03]} 75. d4+ {[%clk 0:00:07]}  Kc2 {[%clk 0:00:04]} 76. Re2+ {[%clk 0:00:08]}  Kc1 {[%clk 0:00:03]} 77. Re1+ {[%clk 0:00:08]}  Kb2 {[%clk 0:00:02]} 78. Re2+ {[%clk 0:00:08]}  Ka1 {[%clk 0:00:02]} 79. d5 {[%clk 0:00:07]}  Rd7 {[%clk 0:00:01]} 80. Rd2 {[%clk 0:00:06]}  b2 {[%clk 0:00:02]} 81. Ke3 {[%clk 0:00:04]}  b1=Q {[%clk 0:00:01]} 82. Kd4 {[%clk 0:00:00]}  Qb4+ {[%clk 0:00:01]} 0-1

[Event "January 9 Late 2024"]
[Site "https://www.chess.com"]
[Date "2024.01.09"]
[Round "2"]
[White "Abdi, Farzad"]
[Black "Martins, Vinicius Tine"]
[Result "0-1"]
[Board "212"]
[TimeControl "180+1"]
[WhiteFideId "2076829"]
[BlackFideId "2112884"]
[WhiteElo "2202"]
[BlackElo "2491"]
[WhiteTeam "USA"]
[BlackTeam "BRA"]
[WhiteClock "0:01:43"]
[BlackClock "0:01:43"]

1. d4 {[%clk 0:03:00]}  d6 {[%clk 0:02:58]} 2. e4 {[%clk 0:02:59]}  Nf6 {[%clk 0:02:57]} 3. Nc3 {[%clk 0:02:59]}  g6 {[%clk 0:02:57]} 4. Nf3 {[%clk 0:02:58]}  Bg7 {[%clk 0:02:56]} 5. g3 {[%clk 0:02:56]}  c5 {[%clk 0:02:55]} 6. Bg2 {[%clk 0:02:55]}  cxd4 {[%clk 0:02:52]} 7. Nxd4 {[%clk 0:02:56]}  Bd7 {[%clk 0:02:50]} 8. O-O {[%clk 0:02:55]}  Nc6 {[%clk 0:02:49]} 9. Nb3 {[%clk 0:02:50]}  Qc8 {[%clk 0:02:48]} 10. Re1 {[%clk 0:02:43]}  Bh3 {[%clk 0:02:37]} 11. a3 {[%clk 0:02:27]}  h5 {[%clk 0:02:35]} 12. Bg5 {[%clk 0:02:25]}  h4 {[%clk 0:02:15]} 13. Bxh4 {[%clk 0:02:18]}  Bxg2 {[%clk 0:02:14]} 14. Kxg2 {[%clk 0:02:12]}  g5 {[%clk 0:02:13]} 15. Bxg5 {[%clk 0:02:04]}  Qh3+ {[%clk 0:02:12]} 16. Kf3 {[%clk 0:02:05]}  Qh5+ {[%clk 0:02:02]} 17. Kg2 {[%clk 0:02:00]}  Qxh2+ {[%clk 0:01:44]} 18. Kf1 {[%clk 0:01:55]}  Qh1+ {[%clk 0:01:43]} 19. Ke2 {[%clk 0:01:43]}  Qh5+ {[%clk 0:01:43]} 0-1

[Event "January 9 Late 2024"]
[Site "https://www.chess.com"]
[Date "2024.01.10"]
[Round "2"]
[White "Piscicelli, Daniel Orlando"]
[Black "Saha, Ananda"]
[Result "0-1"]
[Board "214"]
[TimeControl "180+1"]
[WhiteFideId "101958"]
[BlackFideId "2619644"]
[WhiteElo "2186"]
[BlackElo "2484"]
[WhiteTeam "ARG"]
[BlackTeam "CAN"]
[WhiteClock "0:00:00"]
[BlackClock "0:00:29"]

1. e4 {[%clk 0:02:54]}  e6 {[%clk 0:02:59]} 2. d4 {[%clk 0:02:52]}  d5 {[%clk 0:03:00]} 3. exd5 {[%clk 0:02:53]}  exd5 {[%clk 0:03:01]} 4. Bd3 {[%clk 0:02:53]}  c5 {[%clk 0:03:00]} 5. Nf3 {[%clk 0:02:50]}  c4 {[%clk 0:02:59]} 6. Be2 {[%clk 0:02:50]}  Bd6 {[%clk 0:02:56]} 7. O-O {[%clk 0:02:47]}  Nf6 {[%clk 0:02:51]} 8. c3 {[%clk 0:02:45]}  h6 {[%clk 0:02:50]} 9. Be3 {[%clk 0:02:40]}  Nc6 {[%clk 0:02:47]} 10. Nbd2 {[%clk 0:02:40]}  Bf5 {[%clk 0:02:41]} 11. Re1 {[%clk 0:02:31]}  O-O {[%clk 0:02:40]} 12. b3 {[%clk 0:02:23]}  b5 {[%clk 0:02:36]} 13. Nf1 {[%clk 0:02:00]}  Ne4 {[%clk 0:02:30]} 14. Rc1 {[%clk 0:01:49]}  Ba3 {[%clk 0:02:15]} 15. Rc2 {[%clk 0:01:21]}  Nd6 {[%clk 0:02:07]} 16. Rd2 {[%clk 0:01:15]}  Qa5 {[%clk 0:02:04]} 17. b4 {[%clk 0:01:12]}  Nxb4 {[%clk 0:02:04]} 18. cxb4 {[%clk 0:01:09]}  Bxb4 {[%clk 0:02:05]} 19. Ng3 {[%clk 0:00:53]}  Bh7 {[%clk 0:02:00]} 20. Ne5 {[%clk 0:00:48]}  Bxd2 {[%clk 0:01:55]} 21. Qxd2 {[%clk 0:00:36]}  c3 {[%clk 0:01:27]} 22. Qc1 {[%clk 0:00:16]}  b4 {[%clk 0:01:15]} 23. Nc6 {[%clk 0:00:12]}  Qa4 {[%clk 0:01:02]} 24. Ne7+ {[%clk 0:00:11]}  Kh8 {[%clk 0:01:02]} 25. Nxd5 {[%clk 0:00:12]}  Rac8 {[%clk 0:00:48]} 26. Bxh6 {[%clk 0:00:07]}  Qc2 {[%clk 0:00:32]} 27. Qxc2 {[%clk 0:00:01]}  Bxc2 {[%clk 0:00:33]} 28. Be3 {[%clk 0:00:00]}  a5 {[%clk 0:00:29]} 0-1

[Event "January 9 Late 2024"]
[Site "https://www.chess.com"]
[Date "2024.01.09"]
[Round "2"]
[White "Novik, Maxim"]
[Black "Ferrufino, Boris"]
[Result "1-0"]
[Board "215"]
[TimeControl "180+1"]
[WhiteFideId "4102924"]
[BlackFideId "3300170"]
[WhiteElo "2480"]
[BlackElo "2171"]
[WhiteTeam "LTU"]
[BlackTeam "BOL"]
[WhiteClock "0:01:47"]
[BlackClock "0:01:26"]

1. e4 {[%clk 0:02:59]}  c5 {[%clk 0:02:59]} 2. Nf3 {[%clk 0:03:00]}  d6 {[%clk 0:02:59]} 3. d4 {[%clk 0:03:00]}  cxd4 {[%clk 0:03:00]} 4. Nxd4 {[%clk 0:03:00]}  Nf6 {[%clk 0:03:01]} 5. Nc3 {[%clk 0:03:01]}  g6 {[%clk 0:03:01]} 6. Be2 {[%clk 0:03:00]}  Bg7 {[%clk 0:03:01]} 7. O-O {[%clk 0:03:01]}  Nc6 {[%clk 0:03:02]} 8. Nb3 {[%clk 0:03:01]}  O-O {[%clk 0:03:02]} 9. Bg5 {[%clk 0:03:01]}  b6 {[%clk 0:02:56]} 10. f4 {[%clk 0:03:01]}  Bb7 {[%clk 0:02:56]} 11. Bf3 {[%clk 0:03:01]}  Rc8 {[%clk 0:02:53]} 12. Qd2 {[%clk 0:02:56]}  a6 {[%clk 0:02:41]} 13. Rad1 {[%clk 0:02:56]}  Qc7 {[%clk 0:02:40]} 14. Rfe1 {[%clk 0:02:50]}  Rfd8 {[%clk 0:02:28]} 15. Nd5 {[%clk 0:02:45]}  Nxd5 {[%clk 0:02:20]} 16. exd5 {[%clk 0:02:45]}  Na5 {[%clk 0:02:19]} 17. Nxa5 {[%clk 0:02:45]}  bxa5 {[%clk 0:02:19]} 18. Rxe7 {[%clk 0:02:44]}  Rd7 {[%clk 0:02:19]} 19. Rxd7 {[%clk 0:02:43]}  Qxd7 {[%clk 0:02:19]} 20. c3 {[%clk 0:02:40]}  Qa4 {[%clk 0:02:18]} 21. b3 {[%clk 0:02:34]}  Qa3 {[%clk 0:02:14]} 22. c4 {[%clk 0:02:34]}  a4 {[%clk 0:02:12]} 23. f5 {[%clk 0:02:30]}  axb3 {[%clk 0:02:09]} 24. f6 {[%clk 0:02:28]}  Bf8 {[%clk 0:02:09]} 25. Bh6 {[%clk 0:02:10]}  Kh8 {[%clk 0:01:56]} 26. Bxf8 {[%clk 0:02:00]}  Rxf8 {[%clk 0:01:57]} 27. axb3 {[%clk 0:02:00]}  Qxb3 {[%clk 0:01:55]} 28. Qh6 {[%clk 0:01:55]}  Rg8 {[%clk 0:01:54]} 29. Qf4 {[%clk 0:01:52]}  Qb6+ {[%clk 0:01:47]} 30. Kh1 {[%clk 0:01:51]}  Re8 {[%clk 0:01:47]} 31. h4 {[%clk 0:01:49]}  Re5 {[%clk 0:01:26]} 32. Qh6 {[%clk 0:01:47]} 1-0